bitfinex/quotes_SOLUSD_20240621
["timestamp","ask_amount","ask_price","bid_price","bid_amount"]
[1718949320194,9.47,133.3,133.26,20.0]
[1718949320391,9.47,133.3,133.25,20.0]
[1718949321188,15.6826,133.31,133.25,20.0]
[1718949321189,9.47,133.28,133.25,20.0]
[1718949321377,9.47,133.28,133.23,20.0]
[1718949321772,15.6826,133.31,133.23,20.0]
[1718949321773,9.47,133.26,133.23,20.0]
[1718949322085,15.6826,133.31,133.21,20.0]
[1718949322086,9.47,133.25,133.21,20.0]
[1718949322291,9.47,133.25,133.19,20.0]
[1718949322465,9.47,133.25,133.19,9.47]
[1718949322668,9.47,133.25,133.2,29.47]
[1718949322890,9.47,133.25,133.21,20.0]
[1718949323881,9.47,133.25,133.2,29.47]
[1718949324473,15.3994,133.26,133.21,9.47]
[1718949324675,15.8291,133.29,133.23,9.47]
[1718949324980,15.8291,133.29,133.24,20.0]
[1718949325166,25.2991,133.29,133.24,20.0]
[1718949325358,25.2991,133.29,133.24,29.47]
[1718949325571,15.8291,133.29,133.25,9.98]
[1718949325899,15.8291,133.29,133.26,20.0]
[1718949326358,25.2991,133.29,133.24,20.0]
[1718949326764,15.8291,133.29,133.24,29.47]
[1718949326978,15.8291,133.29,133.25,0.51]
[1718949328683,15.8291,133.29,133.25,0.17]
[1718949328985,25.2991,133.29,133.24,20.0]
[1718949329986,15.8291,133.29,133.24,20.0]
[1718949330184,25.2991,133.29,133.24,29.47]
[1718949332379,15.8291,133.29,133.24,29.47]
[1718949332687,25.2991,133.29,133.24,29.47]
[1718949333295,25.2991,133.29,133.24,20.0]
[1718949333591,15.8291,133.29,133.24,20.0]
[1718949333780,15.8291,133.29,133.23,20.0]
[1718949334173,9.47,133.28,133.23,20.0]
[1718949336796,25.2991,133.29,133.24,9.47]
[1718949336987,25.2991,133.29,133.25,20.0]
[1718949337499,14.02339347,133.31,133.25,29.47]
[1718949337688,15.6974,133.31,133.26,9.64]
[1718949337886,15.6974,133.31,133.27,20.0]
[1718949338090,6.2274,133.31,133.27,20.0]
[1718949338478,15.6974,133.31,133.27,20.0]
[1718949339596,6.2274,133.31,133.27,20.0]
[1718949339774,15.6974,133.31,133.27,20.0]
[1718949340595,15.6974,133.31,133.26,20.17]
[1718949340779,6.2274,133.31,133.26,29.64]
[1718949341094,15.6974,133.31,133.26,29.64]
[1718949341397,6.2274,133.31,133.26,29.64]
[1718949341593,15.6974,133.31,133.26,29.64]
[1718949343294,15.6974,133.31,133.26,20.17]
[1718949343497,15.6974,133.31,133.26,9.47]
[1718949343693,15.6974,133.31,133.27,20.0]
[1718949344291,15.6974,133.31,132.88,31.22890127]
[1718949344292,9.47,133.28,133.26,20.0]
[1718949344600,9.47,133.27,133.22,9.47]
[1718949344808,9.47,133.28,133.23,29.47]
[1718949345097,9.47,133.27,133.23,20.0]
[1718949345399,6.2274,133.31,133.23,29.47]
[1718949345594,9.47,133.29,133.23,29.47]
[1718949345788,9.47,133.28,133.23,29.47]
[1718949346705,9.47,133.28,133.23,20.0]
[1718949347082,9.47,133.27,133.23,20.0]
[1718949347377,25.2954,133.28,133.23,20.0]
[1718949348006,9.47,133.27,133.23,20.0]
[1718949348392,9.47,133.27,133.22,9.47]
[1718949348592,9.47,133.27,133.23,20.0]
[1718949349494,25.2954,133.28,133.23,29.47]
[1718949349700,25.2954,133.28,133.23,20.0]
[1718949350411,25.2954,133.28,133.23,29.47]
[1718949352222,7.79723798,133.3,133.24,9.47]
[1718949352509,9.47,133.29,133.25,20.0]
[1718949352883,9.47,133.29,133.24,20.0]
[1718949353513,9.47,133.29,133.24,29.47]
[1718949354302,9.47,133.3,133.24,29.47]
[1718949354701,16.4483,133.31,133.26,9.47]
[1718949354996,31.4174,133.34,133.28,9.47]
[1718949355202,21.9474,133.34,133.28,9.47]
[1718949355388,9.47,133.33,133.29,20.0]
[1718949355798,9.47,133.32,133.29,20.0]
[1718949355990,9.47,133.32,133.28,20.0]
[1718949356207,21.9474,133.34,133.27,20.0]
[1718949356409,9.47,133.32,133.27,29.47]
[1718949357402,9.47,133.32,133.27,20.0]
[1718949359000,9.47,133.31,133.26,9.47]
[1718949359227,9.47,133.31,133.27,20.0]
[1718949359919,9.47,133.31,133.25,29.81]
[1718949360917,9.47,133.31,133.26,9.47]
[1718949361095,9.47,133.31,133.27,20.0]
[1718949361800,31.4174,133.34,133.28,9.47]
[1718949362012,31.4174,133.34,133.29,20.0]
[1718949362513,21.9474,133.34,133.29,20.0]
[1718949362713,31.4174,133.34,133.29,20.0]
[1718949363108,21.9474,133.34,133.29,29.47]
[1718949363308,21.9474,133.34,133.29,9.47]
[1718949363515,21.9474,133.34,133.3,20.0]
[1718949364620,31.4174,133.34,133.29,9.47]
[1718949364808,31.4174,133.34,133.3,20.0]
[1718949365412,31.4174,133.34,133.29,20.0]
[1718949365807,17.30568043,133.36,133.3,9.47]
[1718949366013,33.1508195,133.37,133.32,9.47]
[1718949366209,33.1508195,133.37,133.33,20.0]
[1718949368925,0.8323195,133.37,133.33,29.47]
[1718949369103,0.8323195,133.37,133.34,9.47]
[1718949369305,0.8323195,133.37,133.35,20.0]
[1718949369910,0.8323195,133.37,133.34,20.0]
[1718949370319,0.8323195,133.37,133.35,9.47]
[1718949370616,0.8323195,133.37,133.36,20.0]
[1718949371218,0.8323195,133.37,133.35,20.0]
[1718949372902,0.8323195,133.37,133.35,29.47]
[1718949374509,10.3023195,133.37,133.35,20.0]
[1718949375020,9.47,133.36,133.32,20.0]
[1718949375414,9.47,133.36,133.31,20.0]
[1718949375609,0.8323195,133.37,133.31,20.0]
[1718949375814,0.8323195,133.37,133.32,9.47]
[1718949376013,10.3023195,133.37,133.33,20.0]
[1718949376222,9.47,133.36,133.33,20.0]
[1718949376622,9.47,133.36,133.32,20.0]
[1718949376821,0.8323195,133.37,133.32,20.0]
[1718949377126,0.8323195,133.37,133.32,29.47]
[1718949377307,0.8323195,133.37,133.32,20.0]
[1718949377508,9.47,133.36,133.31,20.0]
[1718949378231,0.8323195,133.37,133.33,9.47]
[1718949378413,0.8323195,133.37,133.34,29.47]
[1718949378614,0.8323195,133.37,133.34,29.64]
[1718949378813,0.8323195,133.37,133.34,29.47]
[1718949379905,0.8323195,133.37,133.35,9.47]
[1718949380110,0.8323195,133.37,133.36,29.47]
[1718949380310,0.8323195,133.37,133.36,29.64]
[1718949383517,0.8323195,133.37,133.36,29.98]
[1718949385819,0.8323195,133.37,133.36,29.81]
[1718949386017,0.8323195,133.37,133.36,20.17]
[1718949386620,0.8323195,133.37,133.36,29.64]
[1718949388128,0.8323195,133.37,133.36,29.98]
[1718949388720,0.8323195,133.37,133.36,20.51]
[1718949389033,0.8323195,133.37,133.36,29.98]
[1718949389741,0.8323195,133.37,133.36,20.51]
[1718949389915,0.8323195,133.37,133.36,20.34]
[1718949390523,0.8323195,133.37,133.36,9.81]
[1718949390725,0.8323195,133.37,133.36,29.81]
[1718949390931,0.8323195,133.37,133.36,20.34]
[1718949391310,0.8323195,133.37,133.36,29.47]
[1718949391923,0.8323195,133.37,133.36,20.0]
[1718949392118,0.8323195,133.37,133.33,42.57]
[1718949392633,0.8323195,133.37,133.33,20.0]
[1718949392932,0.8323195,133.37,133.33,9.47]
[1718949393126,0.8323195,133.37,133.34,20.0]
[1718949396535,0.8323195,133.37,133.34,29.47]
[1718949400226,0.8323195,133.37,133.34,20.0]
[1718949404526,0.8323195,133.37,133.34,29.47]
[1718949409568,6.0616,133.36,133.26,5.9060905]
[1718949409850,9.47,133.32,133.28,20.0]
[1718949410561,9.47,133.32,133.27,9.47]
[1718949411440,9.47,133.32,133.28,0.17]
[1718949411640,25.9902,133.33,133.28,0.17]
[1718949412157,25.9902,133.33,133.28,29.64]
[1718949412341,25.9902,133.33,133.29,20.0]
[1718949412655,16.5202,133.33,133.29,29.47]
[1718949412947,16.5202,133.33,133.3,9.47]
[1718949413359,16.5202,133.33,133.31,20.0]
[1718949413861,16.5202,133.33,133.29,20.0]
[1718949415779,16.5202,133.33,133.29,29.47]
[1718949416060,16.5202,133.33,133.29,20.0]
[1718949416270,25.9902,133.33,133.28,9.64]
[1718949416449,25.9902,133.33,133.29,20.0]
[1718949416780,16.5202,133.33,133.29,20.0]
[1718949418059,16.5202,133.33,133.29,29.47]
[1718949418653,8.68205484,133.37,133.32,9.47]
[1718949418862,0.8323195,133.37,133.34,9.47]
[1718949419065,0.8323195,133.37,133.35,20.0]
[1718949419638,0.8323195,133.37,133.34,20.0]
[1718949421046,0.8323195,133.37,133.34,29.47]
[1718949421783,0.8323195,133.37,133.35,9.47]
[1718949421943,0.8323195,133.37,133.36,20.0]
[1718949422553,0.8323195,133.37,133.35,20.0]
[1718949422975,0.8323195,133.37,133.35,29.47]
[1718949424090,0.8323195,133.37,133.36,9.47]
[1718949424300,0.8323195,133.37,133.36,29.47]
[1718949430805,0.8323195,133.37,133.36,20.0]
[1718949430986,0.8323195,133.37,133.36,9.47]
[1718949431189,0.8323195,133.37,133.36,29.47]
[1718949435512,0.8323195,133.37,133.36,20.0]
[1718949435813,16.8382195,133.37,133.36,20.0]
[1718949436012,16.8382195,133.37,133.34,20.0]
[1718949436202,16.8382195,133.37,133.35,9.47]
[1718949437514,16.8382195,133.37,133.36,20.0]
[1718949437721,16.8382195,133.37,133.35,20.0]
[1718949440220,16.8382195,133.37,133.35,29.47]
[1718949440944,0.8323195,133.37,133.35,20.0]
[1718949441212,0.8323195,133.37,133.31,67.69]
[1718949441213,0.8323195,133.37,133.36,9.47]
[1718949441389,0.8323195,133.37,133.36,29.47]
[1718949442109,0.8323195,133.37,133.36,29.64]
[1718949442295,0.8323195,133.37,133.36,29.98]
[1718949447802,0.8323195,133.37,133.36,29.64]
[1718949448002,0.8323195,133.37,133.36,20.0]
[1718949448332,0.8323195,133.37,133.33,9.47]
[1718949448502,0.8323195,133.37,133.34,20.0]
[1718949450536,0.8323195,133.37,133.34,29.47]
[1718949450698,0.8323195,133.37,133.35,9.47]
[1718949451042,0.8323195,133.37,133.36,20.0]
[1718949451398,0.8323195,133.37,133.36,29.47]
[1718949452521,0.8323195,133.37,133.36,29.64]
[1718949452703,0.8323195,133.37,133.36,29.81]
[1718949452897,0.8323195,133.37,133.36,29.64]
[1718949453710,0.8323195,133.37,133.36,29.98]
[1718949460728,0.8323195,133.37,133.36,20.0]
[1718949461023,0.8323195,133.37,133.33,20.0]
[1718949461226,0.8323195,133.37,133.35,9.47]
[1718949461409,0.8323195,133.37,133.36,20.0]
[1718949461834,0.8323195,133.37,133.36,29.47]
[1718949462336,0.8323195,133.37,133.36,20.0]
[1718949462528,0.8323195,133.37,133.36,29.47]
[1718949464134,0.8323195,133.37,133.36,20.0]
[1718949464363,0.8323195,133.37,133.36,9.47]
[1718949464515,0.8323195,133.37,133.36,29.47]
[1718949465933,0.8323195,133.37,133.36,20.0]
[1718949468719,0.8323195,133.37,133.36,29.64]
[1718949469024,0.8323195,133.37,133.36,20.51]
[1718949469215,0.8323195,133.37,133.36,9.98]
[1718949469415,0.8323195,133.37,133.36,29.98]
[1718949470429,0.8323195,133.37,133.36,20.51]
[1718949470634,0.8323195,133.37,133.36,0.17]
[1718949470833,0.8323195,133.37,133.36,20.0]
[1718949471420,0.8323195,133.37,133.35,20.0]
[1718949471819,0.8323195,133.37,133.36,0.17]
[1718949472028,0.8323195,133.37,133.36,0.34]
[1718949472335,0.8323195,133.37,133.36,0.17]
[1718949472539,0.8323195,133.37,133.35,29.47]
[1718949472710,0.8323195,133.37,133.36,0.17]
[1718949472910,0.8323195,133.37,133.36,9.64]
[1718949473122,0.8323195,133.37,133.36,52.55]
[1718949476059,16.3261,133.43,133.36,97.67]
[1718949476224,16.3261,133.43,133.41,9.47]
[1718949476422,16.3261,133.43,133.42,20.0]
[1718949476817,6.4244,133.46,133.42,20.0]
[1718949477140,22.8898,133.46,133.42,20.0]
[1718949478242,9.47,133.45,133.42,20.0]
[1718949478435,24.10731911,133.49,133.41,42.57]
[1718949478647,24.10731911,133.49,133.43,9.64]
[1718949478830,9.47,133.45,133.44,20.0]
[1718949479140,9.47,133.45,133.41,20.0]
[1718949479523,9.47,133.45,133.4,20.17]
[1718949479731,11.08842102,133.48,133.41,22.57]
[1718949480035,9.47,133.47,133.42,29.98]
[1718949481822,9.47,133.48,133.42,29.98]
[1718949482730,9.47,133.47,133.42,29.98]
[1718949483730,264.57,133.47,133.42,29.98]
[1718949483935,9.47,133.47,133.42,29.98]
[1718949485232,22.9228,133.49,133.42,20.0]
[1718949485437,9.47,133.43,133.39,20.0]
[1718949486130,9.47,133.42,133.37,29.47]
[1718949486332,22.7375,133.44,133.37,29.47]
[1718949486532,9.47,133.43,133.37,29.47]
[1718949486836,22.7375,133.44,133.37,29.47]
[1718949486837,9.47,133.41,133.37,20.0]
[1718949487054,9.47,133.41,133.35,29.47]
[1718949487234,9.47,133.41,133.35,52.01]
[1718949487441,9.47,133.42,133.36,9.47]
[1718949487758,9.47,133.42,133.37,20.0]
[1718949489122,9.47,133.42,133.36,9.98]
[1718949489318,9.47,133.42,133.37,20.51]
[1718949491541,30.58008972,133.44,133.37,20.51]
[1718949492057,9.47,133.41,133.37,20.51]
[1718949493853,30.58008972,133.44,133.37,20.51]
[1718949494158,9.47,133.42,133.37,20.51]
[1718949496267,30.58008972,133.44,133.37,20.51]
[1718949496454,9.47,133.42,133.37,29.98]
[1718949496933,30.58008972,133.44,133.37,29.98]
[1718949497133,9.47,133.42,133.37,29.98]
[1718949498854,9.47,133.41,133.37,20.51]
[1718949499432,9.47,133.42,133.37,29.98]
[1718949500937,30.58008972,133.44,133.37,20.0]
[1718949501127,9.47,133.39,133.35,20.0]
[1718949501344,9.47,133.4,133.35,29.47]
[1718949501539,9.47,133.4,133.35,20.0]
[1718949501836,9.47,133.4,133.35,9.47]
[1718949502053,9.47,133.4,133.36,20.0]
[1718949505137,9.47,133.4,133.35,9.64]
[1718949505342,7.84104461,133.43,133.36,20.17]
[1718949505553,9.47,133.4,133.36,20.17]
[1718949508861,7.84104461,133.43,133.36,20.17]
[1718949509045,9.47,133.4,133.36,20.17]
[1718949509945,9.47,133.4,133.37,20.0]
[1718949510258,9.47,133.4,133.36,0.17]
[1718949510463,9.47,133.4,133.36,20.17]
[1718949511175,7.84104461,133.43,133.36,20.0]
[1718949511353,9.47,133.38,133.34,0.34]
[1718949511665,9.47,133.37,133.33,20.0]
[1718949514547,9.47,133.38,133.34,0.17]
[1718949514968,9.47,133.38,133.33,29.47]
[1718949515574,9.47,133.37,133.33,20.0]
[1718949516769,9.47,133.38,133.33,20.0]
[1718949519242,21.9019,133.39,133.33,20.0]
[1718949519243,9.47,133.37,133.33,20.0]
[1718949519444,9.47,133.37,133.32,20.51]
[1718949519640,9.47,133.36,133.33,0.17]
[1718949520447,9.47,133.34,133.32,20.0]
[1718949520644,9.47,133.34,133.29,20.0]
[1718949520860,21.9019,133.39,133.29,20.0]
[1718949520861,9.47,133.33,133.29,20.0]
[1718949522074,9.47,133.32,133.26,29.47]
[1718949522449,9.47,133.32,133.26,20.0]
[1718949522664,9.47,133.31,133.26,29.47]
[1718949523059,9.47,133.31,133.26,9.47]
[1718949523259,9.47,133.31,133.27,0.51]
[1718949525248,9.47,133.31,133.27,20.51]
[1718949525550,9.47,133.31,133.28,20.0]
[1718949525748,9.47,133.31,133.27,0.51]
[1718949525956,9.47,133.31,133.27,20.51]
[1718949526472,9.47,133.3,133.25,20.0]
[1718949526774,9.47,133.29,133.25,20.0]
[1718949526953,9.47,133.29,133.22,22.54]
[1718949526954,9.47,133.28,133.23,29.47]
[1718949527361,9.47,133.28,133.23,20.0]
[1718949527574,15.2507,133.33,133.22,20.0]
[1718949527575,9.47,133.27,133.22,20.0]
[1718949527761,9.47,133.27,133.21,29.47]
[1718949528153,9.47,133.27,133.21,52.01]
[1718949528468,9.47,133.28,133.22,9.47]
[1718949528672,9.47,133.28,133.23,20.0]
[1718949528883,9.47,133.28,133.21,42.54]
[1718949529171,9.47,133.28,133.22,9.47]
[1718949529397,9.47,133.28,133.23,20.0]
[1718949530366,9.47,133.28,133.22,29.98]
[1718949530567,9.47,133.28,133.23,0.17]
[1718949530767,9.47,133.28,133.23,0.51]
[1718949531671,6.2717,133.29,133.23,0.51]
[1718949531975,15.7417,133.29,133.24,9.47]
[1718949532277,15.7417,133.29,133.25,20.0]
[1718949532458,9.47,133.29,133.26,0.17]
[1718949532660,6.1923,133.32,133.26,0.17]
[1718949532866,9.47,133.31,133.26,9.64]
[1718949533469,6.1923,133.32,133.26,9.64]
[1718949533673,9.47,133.31,133.26,9.64]
[1718949534373,9.47,133.3,133.26,0.17]
[1718949534577,6.1923,133.32,133.26,0.17]
[1718949534762,9.47,133.3,133.26,0.17]
[1718949535579,9.47,133.3,133.26,20.17]
[1718949536379,9.47,133.3,133.26,0.17]
[1718949536577,9.47,133.3,133.25,0.51]
[1718949536980,9.47,133.31,133.26,9.47]
[1718949537269,9.47,133.31,133.27,20.51]
[1718949538075,9.47,133.31,133.27,0.51]
[1718949541485,9.47,133.31,133.27,0.34]
[1718949541688,9.47,133.31,133.27,0.17]
[1718949543188,9.47,133.31,133.26,0.51]
[1718949543491,6.1923,133.32,133.26,9.98]
[1718949543674,9.47,133.32,133.27,20.0]
[1718949544075,9.47,133.31,133.27,20.0]
[1718949545586,23.09997763,133.33,133.23,12.2822]
[1718949545787,9.47,133.27,133.24,20.0]
[1718949546378,9.47,133.28,133.23,29.47]
[1718949546577,9.47,133.28,133.23,20.0]
[1718949546781,9.47,133.28,133.23,9.47]
[1718949546984,9.47,133.28,133.24,20.0]
[1718949547595,9.47,133.28,133.23,20.0]
[1718949547989,9.47,133.28,133.24,0.17]
[1718949551599,13.99348164,133.3,133.24,0.17]
[1718949551798,7.85108164,133.3,133.24,0.51]
[1718949551983,9.47,133.31,133.25,9.47]
[1718949552302,9.47,133.31,133.26,0.17]
[1718949552479,9.47,133.3,133.26,20.34]
[1718949553079,9.47,133.3,133.26,20.0]
[1718949553685,9.47,133.3,133.25,20.0]
[1718949554381,9.47,133.3,133.24,9.81]
[1718949554583,9.47,133.3,133.25,20.17]
[1718949554993,23.0999324,133.33,133.25,29.64]
[1718949555193,9.47,133.3,133.25,29.64]
[1718949556285,9.47,133.3,133.25,20.17]
[1718949556486,9.47,133.3,133.25,9.64]
[1718949556686,9.47,133.3,133.26,20.0]
[1718949559002,23.0999324,133.33,133.26,20.0]
[1718949559192,9.47,133.31,133.26,20.0]
[1718949559594,9.47,133.3,133.26,20.0]
[1718949559908,23.0999324,133.33,133.26,20.0]
[1718949559909,9.47,133.31,133.26,20.0]
[1718949560283,9.47,133.31,133.27,0.34]
[1718949561950,32.5699324,133.33,133.27,0.34]
[1718949562205,32.5699324,133.33,133.28,9.47]
[1718949566409,23.0999324,133.33,133.28,9.47]
[1718949566782,7.8492324,133.33,133.29,29.98]
[1718949567011,21.7935,133.37,133.3,9.64]
[1718949567188,7.84535647,133.36,133.31,20.0]
[1718949567589,9.47,133.35,133.31,20.0]
[1718949568487,9.47,133.35,133.3,20.17]
[1718949568687,7.84535647,133.36,133.3,20.17]
[1718949568899,9.47,133.34,133.3,20.17]
[1718949569210,9.47,133.32,133.25,6.2191]
[1718949569439,9.47,133.32,133.26,29.47]
[1718949569594,9.47,133.32,133.26,52.01]
[1718949569907,9.47,133.32,133.27,9.47]
[1718949570095,9.47,133.32,133.28,20.0]
[1718949570297,7.84535647,133.36,133.28,20.0]
[1718949570495,9.47,133.33,133.28,20.0]
[1718949572808,9.47,133.32,133.28,20.0]
[1718949573015,9.47,133.32,133.27,9.47]
[1718949573230,9.47,133.32,133.28,20.0]
[1718949573899,9.47,133.32,133.27,21.49819072]
[1718949578510,9.47,133.32,133.27,21.49819072]
[1718949579108,9.47,133.33,133.28,0.17]
[1718949580317,9.47,133.32,133.28,0.17]
[1718949581426,9.47,133.32,133.27,20.0]
[1718949581629,9.47,133.32,133.26,29.81]
[1718949581935,9.47,133.31,133.26,29.81]
[1718949582118,9.47,133.32,133.26,29.81]
[1718949582519,9.47,133.31,133.26,29.81]
[1718949582705,9.47,133.31,133.26,20.34]
[1718949582908,9.47,133.31,133.26,29.81]
[1718949583639,9.47,133.3,133.26,20.34]
[1718949585107,9.47,133.3,133.25,20.17]
[1718949585723,9.47,133.29,133.25,20.17]
[1718949586326,9.47,133.3,133.25,20.17]
[1718949586732,9.47,133.31,133.25,29.64]
[1718949588835,9.47,133.31,133.25,20.17]
[1718949589056,9.47,133.31,133.25,29.64]
[1718949591442,9.47,133.31,133.26,0.17]
[1718949595752,9.47,133.31,133.26,0.34]
[1718949596636,9.47,133.31,133.26,9.81]
[1718949598131,9.47,133.31,133.26,0.34]
[1718949598433,9.47,133.31,133.26,9.81]
[1718949598639,9.47,133.31,133.26,0.34]
[1718949598851,9.47,133.31,133.26,0.17]
[1718949599024,9.47,133.31,133.25,29.47]
[1718949600245,9.47,133.29,133.25,20.0]
[1718949600431,9.47,133.27,133.23,6.2191]
[1718949600632,9.47,133.27,133.22,9.47]
[1718949600837,7.85090274,133.29,133.24,9.47]
[1718949601037,17.32090274,133.29,133.24,9.47]
[1718949601348,17.32090274,133.29,133.21,12.2822]
[1718949601349,6.4197,133.33,133.23,9.47]
[1718949601544,9.47,133.3,133.24,9.47]
[1718949601844,7.8502739,133.31,133.25,9.47]
[1718949601845,17.3202739,133.31,133.25,9.47]
[1718949602144,9.47,133.29,133.23,9.47]
[1718949602345,9.47,133.29,133.24,20.0]
[1718949602546,9.47,133.28,133.24,20.0]
[1718949602851,9.47,133.26,133.21,21.7522]
[1718949603050,15.7002,133.3,133.21,21.7522]
[1718949603361,9.47,133.27,133.22,9.47]
[1718949603550,9.47,133.27,133.21,12.2822]
[1718949603551,15.7002,133.3,133.21,12.2822]
[1718949603736,9.47,133.26,133.21,21.7522]
[1718949603925,0.17,133.29,133.21,21.7522]
[1718949604125,9.47,133.26,133.21,12.2822]
[1718949604352,9.47,133.26,133.21,21.7522]
[1718949606751,9.47,133.25,133.21,12.2822]
[1718949606991,9.47,133.28,133.19,9.47]
[1718949606992,9.47,133.24,133.19,9.47]
[1718949607129,37.88,133.28,133.18,21.7522]
[1718949607130,9.47,133.23,133.18,21.7522]
[1718949607443,9.47,133.21,133.16,15.6891]
[1718949608029,9.47,133.21,133.16,6.2191]
[1718949608241,9.47,133.21,133.16,15.6891]
[1718949608637,9.47,133.21,133.16,6.2191]
[1718949608957,9.47,133.2,133.15,21.7522]
[1718949609261,9.47,133.2,133.15,12.2822]
[1718949609559,9.47,133.2,133.15,21.7522]
[1718949609933,6.1182,133.24,133.15,21.7522]
[1718949610134,9.47,133.21,133.15,21.7522]
[1718949610553,6.1182,133.24,133.15,12.2822]
[1718949610554,9.47,133.2,133.15,12.2822]
[1718949610956,9.47,133.2,133.15,21.7522]
[1718949611763,9.47,133.2,133.15,12.2822]
[1718949612172,9.47,133.2,133.15,21.7522]
[1718949612353,7.84103638,133.22,133.16,9.98]
[1718949612552,9.47,133.22,133.16,9.98]
[1718949613260,7.84163132,133.24,133.18,9.47]
[1718949613458,7.84163132,133.24,133.16,0.51]
[1718949613664,17.31163132,133.24,133.18,9.47]
[1718949613851,17.31163132,133.24,133.16,0.51]
[1718949614053,9.47,133.23,133.16,0.51]
[1718949614255,9.47,133.23,133.17,9.47]
[1718949614492,9.47,133.23,133.18,0.17]
[1718949614966,9.47,133.22,133.17,9.47]
[1718949616662,9.47,133.21,133.16,9.47]
[1718949616842,9.47,133.22,133.17,20.17]
[1718949617047,9.47,133.22,133.16,9.47]
[1718949617048,9.47,133.2,133.15,12.2822]
[1718949617260,9.47,133.2,133.16,20.0]
[1718949618142,7.84163132,133.24,133.16,20.0]
[1718949618348,9.47,133.21,133.16,29.47]
[1718949619263,7.84163132,133.24,133.16,29.47]
[1718949619455,9.47,133.22,133.16,29.47]
[1718949619864,9.47,133.21,133.16,29.47]
[1718949620056,7.84163132,133.24,133.16,20.0]
[1718949620254,9.47,133.22,133.16,29.47]
[1718949621373,9.47,133.23,133.18,9.47]
[1718949621877,17.31163132,133.24,133.18,9.47]
[1718949622452,9.47,133.23,133.17,0.51]
[1718949622652,9.47,133.22,133.16,20.0]
[1718949622871,7.84163132,133.24,133.17,9.47]
[1718949623177,9.47,133.22,133.17,9.47]
[1718949623478,9.47,133.23,133.17,9.47]
[1718949623774,9.47,133.23,133.18,9.47]
[1718949625463,7.84163132,133.24,133.2,9.47]
[1718949625668,7.84163132,133.24,133.19,0.17]
[1718949625669,9.47,133.26,133.21,9.47]
[1718949625857,23.42365844,133.27,133.21,9.47]
[1718949626268,9.47,133.26,133.21,9.47]
[1718949626869,7.84135844,133.27,133.21,9.47]
[1718949627048,7.84135844,133.27,133.22,9.47]